Cogmind - Beta 17 @@@ ROGUE MODE // 2026.08.01 @ 17:12:56 Player: gortmind Result: Destroyed by H-55 Commando with Gauss Rifle Performance ------------- Evolutions (3) 1500 Regions Visited (8) 1600 Robots Destroyed (126) 630 Value Destroyed (4117) 4117 Prototype IDs (13) 260 Alien Tech Used (0) 0 Bonus (107) 107 TOTAL SCORE: 8214 Bonus ------- High Alert Combat Kills 62 Follower Combat Kills 45 Cogmind --------- Core Integrity 0/700 Matter 108/300 Energy 99/100 System Corruption 8% Temperature Cool (0) Movement Core (50) Location -7/Storage Parts ------- > --- POWER (1) -------- (None) > --- PROPULSION (3) --- (None) > --- UTILITY (5) ------ Hacking Suite > --- WEAPON (4) ------- Enhanced Autogun > --- INVENTORY (5) ---- High-capacity Matter Pod (0) Precision Grenade Launcher Improved Datajack Peak State ------------ > --- POWER ------------ Light Nuclear Core > --- PROPULSION ------- Improved Treads Advanced Treads Advanced Treads > --- UTILITY ---------- Improved Sensor Array Improved Signal Interpreter Matter Filter Hardened Heavy Armor Plating > --- WEAPON ----------- Enhanced Autogun Enhanced Autogun Gauss Rifle Gauss Rifle > --- INVENTORY -------- High-capacity Matter Pod Minigun Enhanced Autogun Flak Gun Improved Datajack [Rating: 46] Favorites ----------- Power Improved Ion Engine Engine Improved Ion Engine Power Core Light Nuclear Core Propulsion Improved Treads Treads Improved Treads Wheel Compact Wheel Hover Unit Improved Hover Unit Utility Improved Signal Interpreter Device Sensor Array Storage Small Storage Unit Processor Improved Signal Interpreter Hackware Hacking Suite Protection Hardened Light Armor Plating Weapon Enhanced Autogun Energy Gun Gatling Laser Energy Cannon Advanced Beam Cannon Ballistic Gun Enhanced Autogun Ballistic Cannon Improved Light Cannon Launcher Precision Grenade Launcher Build | -11 -10 -9 -9 -9 -8 -8 -7 -7 ------- Run | Yrd Mat Mat Min Exi Min Mat Fac Sto Slots Evolved 6 | . . 2 . . . 2 2 . Power . | . . . . . . . . . Propulsion 1 | . . . . . . . 1 . Utility 3 | . . 1 . . . 1 1 . Weapon 2 | . . 1 . . . 1 . . Parts Attached 71 | 7 6 21 3 . 1 10 14 9 Power 8 | 1 1 3 . . . 1 2 . Engine 5 | 1 1 3 . . . . . . Core 3 | . . . . . . 1 2 . Reactor . | . . . . . . . . . Propulsion 14 | 2 1 4 . . . 2 2 3 Treads 7 | . . 2 . . . 2 2 1 Leg . | . . . . . . . . . Wheel 5 | 2 1 . . . . . . 2 Hover 2 | . . 2 . . . . . . Flight . | . . . . . . . . . Utility 23 | 2 2 6 2 . 1 3 6 1 Device 9 | 1 1 1 2 . . 2 2 . Storage 4 | 1 1 1 . . . . 1 . Processor 2 | . . 1 . . 1 . . . Hackware 2 | . . . . . . . 2 . Protection 6 | . . 3 . . . 1 1 1 Artifact . | . . . . . . . . . Weapon 26 | 2 2 8 1 . . 4 4 5 Energy Gun 2 | . . 1 . . . . . 1 Energy Cannon 2 | . . 2 . . . . . . Ballistic Gun 16 | 2 1 3 1 . . 4 3 2 Ballistic Cannon 3 | . 1 1 . . . . . 1 Launcher 3 | . . 1 . . . . 1 1 Special Weapon . | . . . . . . . . . Impact Weapon . | . . . . . . . . . Slashing Weapon . | . . . . . . . . . Piercing Weapon . | . . . . . . . . . Special Melee Weapon . | . . . . . . . . . Unidentified Prototypes 7 | . . 3 1 . . 1 2 . Parts Lost 32 | . . 10 . . . 2 4 16 Power 3 | . . 1 . . . 1 . 1 Propulsion 8 | . . 3 . . . . 2 3 Utility 9 | . . 3 . . . 1 1 4 Weapon 12 | . . 3 . . . . 1 8 Highest Loss Streak 11 | . . 8 . . . 1 3 11 To Critical Strikes 1 | . . 1 . . . . . . Average Backups 4 | 4 6 3 3 4 4 4 4 4 Power . | . . . . . . . . . Propulsion . | 2 1 . . . . . . . Utility 1 | . 1 2 1 2 2 1 1 1 Weapon 1 | . 1 . . 1 1 2 2 2 Tool/Special . | . . . . . . . . . Unused Backups 15 | . 10 2 . . . 1 1 1 Power 1 | . 1 . . . . . . . Propulsion 5 | . 4 . . . . . 1 . Utility 3 | . 2 1 . . . . . . Weapon 4 | . 3 . . . . 1 . . Tool/Special 2 | . . 1 . . . . . 1 Average Slot Usage (%) 91 | . 99 91 99 100 100 88 87 72 Engine 6 | . 14 10 11 11 11 1 . . Core 3 | . . . . . . 6 6 6 Treads 15 | . . 10 22 22 22 17 18 9 Wheel 3 | . 28 3 . . . . . . Device 12 | . 19 17 10 11 11 9 12 3 Processor 7 | . . 4 11 11 11 9 7 6 Hackware 2 | . . . . . . . 5 14 Protection 6 | . . 5 10 11 11 8 4 2 Energy Cannon 1 | . . 6 . . . . . . Ballistic Gun 22 | . 14 14 22 22 22 29 29 20 Ballistic Cannon 7 | . 13 10 11 11 11 6 . 2 Peak Build Rating 46 | 7 10 19 29 19 21 36 46 37 Average Rating 25 | 5 9 15 18 19 20 31 41 32 On Entrance 17 | . 7 10 19 19 19 21 28 37 Avg Prop Armor Cover (%) . | . . . . . . . . . Naked Turns . | . . . . . . . . . Heaviest Build 44 | 14 17 23 24 24 24 37 44 29 Greatest Support 67 | 26 32 46 46 46 46 46 67 40 Greatest Overweight (x) 5 | . . 4 . . . . . 5 Average Overweight (x) . | . . . . . . . . . Largest Inventory Capacity 8 | 8 8 5 5 5 5 5 5 5 Average Capacity 5 | 7 6 5 5 5 5 5 5 5 Most Carried 8 | 7 8 5 5 5 5 5 5 5 Average Carried 4 | 4 6 4 4 5 4 4 4 4 Final Capacity 8 | 8 5 5 5 5 5 5 5 5 Final Carried 6 | 6 4 5 5 5 5 5 4 3 Class Distribution -------------------- 66% | Skirmisher 11% | Mutant 9% | Hacker-Skirmisher 7% | Tank Dominant Class ---------------- Mutant | -10/Materials Tank | -9/Materials Skirmisher | -9/Mines Skirmisher | -9/Exiles Skirmisher | -8/Mines Skirmisher | -8/Materials Skirmisher | -7/Factory Hacker-Skirmisher | -7/Storage Resources | -11 -10 -9 -9 -9 -8 -8 -7 -7 ----------- Run | Yrd Mat Mat Min Exi Min Mat Fac Sto Matter Collected 4402 | 306 530 730 343 . 105 798 1078 512 Remotely . | . . . . . . . . . Salvage Created 4591 | 124 379 999 136 . . 834 1453 666 Parts 241 | 7 27 57 11 . . 37 71 31 Haulers Intercepted 10 | . 2 4 . . . 1 3 . Recyclers Shooed 3 | . 2 . . . . . . 1 Parts Field Recycled . | . . . . . . . . . Retrieved Matter . | . . . . . . . . . Parts Self-Destructed . | . . . . . . . . . Prevented . | . . . . . . . . . Parts Restored . | . . . . . . . . . Kills | -11 -10 -9 -9 -9 -8 -8 -7 -7 ------- Run | Yrd Mat Mat Min Exi Min Mat Fac Sto Combat Hostiles Destroyed 90 | . 10 21 4 . . 17 25 13 Melee 1 | . . . . . . . . 1 Guns 57 | . 4 3 2 . . 15 22 11 Cannons 24 | . 6 14 2 . . 2 . . AOE 8 | . . 4 . . . . 3 1 Classes Destroyed 17 | 2 5 4 . . . 3 3 . Worker 8 | . 1 2 . . . 1 2 2 Builder 1 | . . . . . . . 1 . Tunneler 2 | 2 . . . . . . . . Hauler 10 | . 2 4 . . . 1 3 . Recycler 8 | 1 2 1 . . . . 1 3 Mechanic 1 | . . 1 . . . . . . Operator 2 | . . 1 . . . . . 1 Watcher 4 | . 2 1 . . . 1 . . Swarmer 13 | . 6 . . . . 3 . 4 Grunt 49 | . 4 13 4 . . 9 14 5 Brawler 3 | . . . . . . 1 2 . Duelist 2 | . . 2 . . . . . . Sentry 13 | . . 6 . . . 2 2 3 Specialist 3 | . . . . . . 1 2 . Hunter 2 | . . . . . . 1 1 . Programmer 3 | . . . . . . . 2 1 Heavy 2 | . . . . . . . 2 . Best Kill Streak 12 | 2 4 9 2 . . 4 7 12 Combat Bots Only 9 | . 3 5 2 . . 4 4 9 Max Kills in Single Turn 3 | 1 1 3 1 . . 1 2 3 Gunslinging 1 | . . . . . . . . 1 Exploded 1 | . . 1 . . . . 1 1 Melee 1 | . . . . . . . . 1 Uniques/NPCs Destroyed . | . . . . . . . . . Combat | -11 -10 -9 -9 -9 -8 -8 -7 -7 -------- Run | Yrd Mat Mat Min Exi Min Mat Fac Sto Hostile Shots Fired 616 | . 44 97 14 . . 66 104 291 Missed 195 | . 15 32 4 . . 14 33 97 Hits 421 | . 29 65 10 . . 52 71 194 Melee 7 | . . 7 . . . . . . Projectile 414 | . 29 58 10 . . 52 71 194 Critical Strikes 8 | . . 2 . . . 2 1 3 Damage Taken 5360 | . 206 955 143 . . 768 1234 2054 Core 972 | . 62 163 . . . 40 149 558 Absorbed by Shields 152 | . 48 104 . . . . . . Regen/Repaired (Parts) 362 | . 11 97 . . . 108 146 . Core Remaining (%) 81 | 100 75 . . . 59 92 . . Volleys Fired 293 | 9 44 68 10 . . 55 67 40 Largest 4 | 2 2 3 3 . . 4 4 4 Hottest 169 | 40 56 169 84 . . 111 111 118 Shots Fired 860 | 18 88 176 30 1 3 219 244 81 Gun 646 | 18 44 79 20 . 2 183 231 69 Cannon 187 | . 44 89 10 1 1 36 . 6 Launcher 27 | . . 8 . . . . 13 6 Special . | . . . . . . . . . Kinetic 800 | 18 88 137 30 1 3 219 231 73 Thermal 33 | . . 31 . . . . . 2 Explosive 27 | . . 8 . . . . 13 6 Electromagnetic . | . . . . . . . . . Robot Hit Streak 17 | 8 8 10 4 . 2 17 14 8 Robot Miss Streak 5 | 1 5 5 3 . . 5 5 5 Penetration Max 1 | . . . . . . 1 1 1 Secondary Targets 7 | . . . . . . . 5 2 Max Gunslinging Chain 1 | . . . . . . . 1 1 Shots Hit Robots 477 | 12 44 93 16 . 1 110 144 57 Core Hits 234 | 5 19 41 5 . . 38 76 50 Critical Kills 2 | . . . . . . . 1 1 Critical Parts Destroyed 3 | . . 1 . . . 1 1 . Critical Strikes 10 | . 2 4 . . . 1 2 1 Destroy 6 | . . 2 . . . 1 2 1 Blast 4 | . 2 2 . . . . . . Melee Attacks . | . . . . . . . . . Impact . | . . . . . . . . . Slashing . | . . . . . . . . . Piercing . | . . . . . . . . . Sneak Attacks . | . . . . . . . . . Combat Hostiles . | . . . . . . . . . Follow-up Attacks . | . . . . . . . . . Damage Inflicted 10512 | 129 863 2460 291 . 19 1854 3213 1683 Guns 6565 | 129 302 624 173 . . 1655 2590 1092 Cannons 2176 | . 561 1179 118 . 19 196 . 103 Explosions 1737 | . . 657 . . . . 623 457 Melee . | . . . . . . . . . Ramming 34 | . . . . . . 3 . 31 Kinetic 8309 | 129 863 1418 291 . 19 1851 2590 1148 Thermal 432 | . . 385 . . . . . 47 Explosive 1737 | . . 657 . . . . 623 457 Electromagnetic . | . . . . . . . . . Impact . | . . . . . . . . . Slashing . | . . . . . . . . . Piercing . | . . . . . . . . . Highest Corruption 8 | . . 4 4 4 4 . 4 8 Average Corruption 4 | . . 4 4 4 4 . 3 4 Corruption Purged . | . . . . . . . . . Corruption Blocked . | . . . . . . . . . Effects 128 | . . 22 17 22 14 . 33 20 Message Errors 36 | . . 8 3 10 4 . 6 5 Matter Fused 30 | . . 2 8 4 2 . 8 6 Heat Flow Errors 14 | . . 1 1 1 3 . 6 2 Energy Discharges 10 | . . 1 . 2 1 . 3 3 Parts Rejected 3 | . . . . . . . 2 1 Parts Fused 2 | . . . 1 . 1 . . . Data Loss (minor) 9 | . . 4 1 2 . . 2 . Data Loss (major) 8 | . . 1 2 . . . 2 3 Misfires 7 | . . 2 . 1 3 . 1 . Alerts 6 | . . 1 1 2 . . 2 . Weapon Failures 3 | . . 2 . . . . 1 . Overload Shots . | . . . . . . . . . Overflow Damage 71 | . 5 15 . . . . 10 41 Projectiles 13 | . 5 . . . . . . 8 Explosions 58 | . . 15 . . . . 10 33 Melee . | . . . . . . . . . Knockbacks 13 | . 3 7 1 . . 1 . 1 Impact . | . . . . . . . . . Kinetic 13 | . 3 7 1 . . 1 . 1 Secondary . | . . . . . . . . . Self-Inflicted Damage 126 | . . 46 . . . . . 80 Shots 3 | . . 1 . . . . . 2 Rammed 22 | . . . . . . 2 . 20 Targets Rammed 23 | . . . . . . 2 . 21 Kicked . | . . . . . . . . . Crushed 1 | . . . . . . . . 1 Highest Temperature 559 | . 16 380 299 174 257 418 559 224 Average Temperature 125 | . 7 95 128 81 113 135 164 47 Received Heat Transfer 1516 | . 30 304 81 . . 360 186 555 Effects 27 | . . 4 . . . 1 22 . Shutdowns 3 | . . . . . . . 3 . Energy Bleed 4 | . . . . . . 1 3 . Interference 8 | . . 4 . . . . 4 . Matter Decay 2 | . . . . . . . 2 . Short Circuit 3 | . . . . . . . 3 . Damage (minor) 2 | . . . . . . . 2 . Damage (major) 5 | . . . . . . . 5 . Siege Activations . | . . . . . . . . . Martial Activations . | . . . . . . . . . Shielding Activations . | . . . . . . . . . Robots Disrupted . | . . . . . . . . . Combat Hostiles . | . . . . . . . . . Robots Corrupted . | . . . . . . . . . Combat Hostiles . | . . . . . . . . . Parts Fried . | . . . . . . . . . Impact Corruptions . | . . . . . . . . . Robots Melted . | . . . . . . . . . Combat Hostiles . | . . . . . . . . . Parts Melted 3 | . . . . . . . . 3 Heat Transferred 803 | . . 703 . . . . . 100 Parts Sabotaged . | . . . . . . . . . Parts Stolen . | . . . . . . . . . Parts Stripped . | . . . . . . . . . Power Chain Reactions . | . . . . . . . . . Alert | -11 -10 -9 -9 -9 -8 -8 -7 -7 ------- Run | Yrd Mat Mat Min Exi Min Mat Fac Sto Maximum Alert Level 2 | . . 1 . . . 1 2 1 Low Security (%) 88 | 100 100 81 100 . 100 88 81 79 Level 1 11 | . . 18 . . . 11 17 20 Level 2 . | . . . . . . . 1 . Level 3 . | . . . . . . . . . Level 4 . | . . . . . . . . . Level 5 . | . . . . . . . . . High Security . | . . . . . . . . . Max Security . | . . . . . . . . . Peak Influence 496 | 10 78 235 88 . 15 282 496 271 Initial 224 | . 3 13 68 . . . 123 224 Average 86 | 1 21 121 22 . . 89 118 163 Influence Increases 3192 | 15 334 703 101 . 15 601 922 501 Destroy 0b10 Robot/C 1820 | . 200 420 80 . . 340 520 260 Destroy 0b10 Robot/NC 180 | 15 35 50 . . . 15 35 30 Destroy Leader 478 | . 48 110 20 . . 84 146 70 Allied During Kill 7 | . . . . . . . 7 . Successful Hack 107 | . 16 10 . . . 23 58 . Disable Machine 270 | . 15 45 . . 15 60 75 60 Destroy Structure 210 | . 5 53 1 . . 4 81 66 Partial Spotted 15 | . . . . . . . . 15 Lose Combat Pursuer 105 | . 15 15 . . . 75 . . Influence Decreases 2921 | 10 306 560 277 . 15 329 700 724 Entered New Map 549 | . 2 20 108 . . . 149 270 Time Decay 2022 | 10 304 450 169 . 15 309 471 294 Lost Part 310 | . . 90 . . . 20 40 160 Lost Ally 40 | . . . . . . . 40 . Squads Dispatched 27 | . 1 3 1 . . 4 14 4 Investigation 6 | . . 1 1 . . . 3 1 Extermination 4 | . . . . . . . 3 1 Reinforcement 16 | . 1 2 . . . 4 7 2 Assault . | . . . . . . . . . Garrison 1 | . . . . . . . 1 . Intercept . | . . . . . . . . . Searches Triggered . | . . . . . . . . . Construction Impeded 1 | . . . . . . . . 1 Haulers Reinforced 2 | . . . . . . . 2 . Active Scanning Responses . | . . . . . . . . . Cargo Convoy Interrupts 1 | . . . . . . . 1 . Stealth | -11 -10 -9 -9 -9 -8 -8 -7 -7 --------- Run | Yrd Mat Mat Min Exi Min Mat Fac Sto Distress Signals 6 | . 1 1 . . . 2 1 1 Communications Jammed . | . . . . . . . . . Distress Signals . | . . . . . . . . . Times Spotted 125 | . 19 28 4 . . 27 29 18 Peak Tracking Total 7 | . 5 4 2 . . 7 4 7 Tactical Retreats 6 | . 1 1 . . . 4 . . Traps | -11 -10 -9 -9 -9 -8 -8 -7 -7 ------- Run | Yrd Mat Mat Min Exi Min Mat Fac Sto Traps Triggered 6 | . . 2 . . . 2 2 . Indirectly . | . . . . . . . . . Trap Hack Attempts . | . . . . . . . . . Triggered . | . . . . . . . . . Disarmed . | . . . . . . . . . Reprogrammed . | . . . . . . . . . Reused . | . . . . . . . . . Traps Extracted . | . . . . . . . . . Installed . | . . . . . . . . . Triggered . | . . . . . . . . . Machines | -11 -10 -9 -9 -9 -8 -8 -7 -7 ---------- Run | Yrd Mat Mat Min Exi Min Mat Fac Sto Machines Disabled 18 | . 1 3 . . 1 4 5 4 Max in Single Turn 2 | . 1 1 . . 1 1 2 2 Machines Repaired . | . . . . . . . . . Machines Dismantled . | . . . . . . . . . Machines Sabotaged . | . . . . . . . . . Overloaded Fab Kills . | . . . . . . . . . Hacking | -11 -10 -9 -9 -9 -8 -8 -7 -7 --------- Run | Yrd Mat Mat Min Exi Min Mat Fac Sto Machines Accessed 36 | . 8 3 2 4 . 5 13 1 Terminals 18 | . 6 2 . . . 3 7 . Fabricators 1 | . . . . . . . 1 . Repair Stations 4 | . 1 1 . . . 1 1 . Recycling Units 5 | . 1 . . . . 1 2 1 Scanalyzers 1 | . . . . . . . 1 . Garrison Access 1 | . . . . . . . 1 . Total Hacks 83 | . 23 7 2 4 . 17 26 4 Successful 43 | . 12 5 2 4 . 9 10 1 Failed 40 | . 11 2 . . . 8 16 3 Catastrophic 7 | . . . . . . . 6 1 Database Lockouts . | . . . . . . . . . Manual . | . . . . . . . . . Terminals 46 | . 16 5 . . . 13 12 . Fabricators 1 | . . . . . . . 1 . Repair Stations 13 | . 3 2 . . . 3 5 . Recycling Units 13 | . 4 . . . . 1 4 4 Scanalyzers 1 | . . . . . . . 1 . Garrison Access 3 | . . . . . . . 3 . Terminal Hacks 29 | . 8 3 2 4 . 6 6 . Record 6 | . . . . 4 . . 2 . Prototype ID Bank 2 | . . . . . . 1 1 . Open Door 2 | . . . 2 . . . . . Open DSF 1 | . . . . . . . 1 . Branch Access Points 1 | . . 1 . . . . . . Locate Traps 10 | . 4 1 . . . 3 2 . Surveillance Status 1 | . . . . . . 1 . . Transport Status 1 | . 1 . . . . . . . Registered Components 3 | . 1 1 . . . 1 . . Zone Layout 2 | . 2 . . . . . . . Fabricator Hacks 1 | . . . . . . . 1 . Build 1 | . . . . . . . 1 . Repair Station Hacks 8 | . 2 2 . . . 2 2 . Scan Component 4 | . 1 1 . . . 1 1 . Repair 4 | . 1 1 . . . 1 1 . Recycling Unit Hacks 5 | . 2 . . . . 1 1 1 Process 1 | . . . . . . . . 1 Report Inventory 3 | . 1 . . . . 1 1 . Retrieve Matter 1 | . 1 . . . . . . . Scanalyzer . | . . . . . . . . . Garrison Access Hacks . | . . . . . . . . . Unauthorized Hacks . | . . . . . . . . . Terminals . | . . . . . . . . . Fabricators . | . . . . . . . . . Repair Stations . | . . . . . . . . . Recycling Units . | . . . . . . . . . Scanalyzers . | . . . . . . . . . Garrison Access . | . . . . . . . . . Data Cores Recovered . | . . . . . . . . . Used . | . . . . . . . . . Hacking Detections 25 | . 7 2 . . . 4 11 1 Full Trace Events 5 | . 1 . . . . . 3 1 Feedback Events 1 | . . . . . . . . 1 Corruption 1 | . . . . . . . . 1 Feedback Blocked . | . . . . . . . . . Robot Schematics Acquired . | . . . . . . . . . Robots Built 3 | . . . . . . . 3 . Authchips . | . . . . . . . . . Time 134 | . . . . . . . 134 . Total Robot Build Rating 12 | . . . . . . . 12 . Part Schematics Acquired . | . . . . . . . . . Parts Built . | . . . . . . . . . Authchips . | . . . . . . . . . Time . | . . . . . . . . . Total Part Build Rating . | . . . . . . . . . Part Studies Acquired . | . . . . . . . . . Parts Repaired 4 | . 1 1 . . . 1 1 . Time 156 | . 32 32 . . . 32 60 . Parts Recycled . | . . . . . . . . . Recycled Matter 91 | . . . . . . . . 91 Retrieved Matter 110 | . 110 . . . . . . . Retrieved Components . | . . . . . . . . . Parts Scanalyzed . | . . . . . . . . . Part Schematics Acquired . | . . . . . . . . . Parts Damaged . | . . . . . . . . . Bothacking | -11 -10 -9 -9 -9 -8 -8 -7 -7 ------------ Run | Yrd Mat Mat Min Exi Min Mat Fac Sto Used RIF Installer . | . . . . . . . . . Robots Hacked . | . . . . . . . . . Non-combat . | . . . . . . . . . Combat . | . . . . . . . . . Robot Hacks Applied . | . . . . . . . . . Relay Couplers Released . | . . . . . . . . . Fabnet Peak Effective % . | . . . . . . . . . Robots Rewired . | . . . . . . . . . Allies Hacked . | . . . . . . . . . Hacks Repelled . | . . . . . . . . . Allies | -11 -10 -9 -9 -9 -8 -8 -7 -7 -------- Run | Yrd Mat Mat Min Exi Min Mat Fac Sto Total Allies 3 | . . . . . . . 3 . Largest Group 3 | . . . . . . . 3 . Highest-Rated Group 60 | . . . . . . . 60 . Highest-Rated Ally 20 | . . . . . . . 20 . Total Orders . | . . . . . . . . . Ally Attacks 9 | . . . . . . . 9 . Total Damage 254 | . . . . . . . 254 . Kills 1 | . . . . . . . 1 . Allies Corrupted 1 | . . . . . . . 1 . Allies Melted 1 | . . . . . . . 1 . Intel | -11 -10 -9 -9 -9 -8 -8 -7 -7 ------- Run | Yrd Mat Mat Min Exi Min Mat Fac Sto Active Infowar (turns) 8399 | 9 948 1248 718 1028 708 1351 2105 284 Sensors 6649 | . . 455 718 1028 708 1351 2105 284 Seismic 2014 | 9 948 1057 . . . . . . Robot Analysis Total . | . . . . . . . . . Derelict Logs Recovered 1 | . . . 1 . . . . . Drone Launches . | . . . . . . . . . Drone Recoveries . | . . . . . . . . . Exploration | -11 -10 -9 -9 -9 -8 -8 -7 -7 ------------- Run | Yrd Mat Mat Min Exi Min Mat Fac Sto Turns Passed 9121 | 99 948 1400 730 1028 708 1351 2209 648 Spaces Moved 4737 | 61 715 683 382 643 424 567 1003 259 Core 44 | 7 . 25 . . . . . 12 Treads 3581 | . . 324 382 643 424 567 1003 238 Legs . | . . . . . . . . . Wheels 902 | 54 715 124 . . . . . 9 Hover 210 | . . 210 . . . . . . Flight . | . . . . . . . . . Fastest Speed 50 | 50 90 100 160 160 160 145 150 50 Average Speed 145 | 85 97 138 160 160 160 157 153 177 Slowest Speed 300 | 90 100 250 160 160 160 160 160 300 Overloaded Moves . | . . . . . . . . . Propulsion Burnouts . | . . . . . . . . . Robots Hopped . | . . . . . . . . . Potential Cave-ins . | . . . . . . . . . Cave-ins Triggered . | . . . . . . . . . Exploration Rate (%) 51 | 4 85 52 71 91 72 40 28 21 Regions Visited 8 Branch Regions 4 Pre-discovered Areas . | . . . . . . . . . Known Exits Taken 6 | . . 1 1 1 1 1 1 . Unknown Exits Taken 2 | 1 1 . . . . . . . Scrap Searched 4 | . . . 2 . 2 . . . Spaces Dug . | . . . . . . . . . Terrain Destroyed 212 | . 1 45 2 . . 1 91 72 Melee . | . . . . . . . . . Projectile 9 | . 1 1 2 . . 1 . 4 AOE 203 | . . 44 . . . . 91 68 Terrain Rammed . | . . . . . . . . . Walls Destroyed . | . . . . . . . . . Machines Disabled . | . . . . . . . . . Actions | -11 -10 -9 -9 -9 -8 -8 -7 -7 --------- Run | Yrd Mat Mat Min Exi Min Mat Fac Sto Total 6422 | 91 885 998 481 642 454 918 1586 367 Wait 1121 | 2 84 188 65 . 27 257 474 24 Move 4729 | 60 714 682 381 642 423 566 1002 259 Hop . | . . . . . . . . . Pick Up 105 | 13 17 24 9 . 2 15 16 9 Fast Attach . | . . . . . . . . . Attach 52 | 7 2 13 3 . . 7 11 9 Detach 1 | . . . . . . . 1 . Swap 41 | . 6 12 4 . 1 7 8 3 Drop 57 | . 18 11 9 . 1 9 7 2 Fire 293 | 9 44 68 10 . . 55 67 40 Melee . | . . . . . . . . . Ram 6 | . . . . . . . . 6 Kick . | . . . . . . . . . Crush 17 | . . . . . . 2 . 15 Escape Stasis . | . . . . . . . . . Rewire . | . . . . . . . . . Trap . | . . . . . . . . . Miscellaneous . | . . . . . . . . . Route ------- -11/Scrapyard -10/Materials (discovered 3 exits: *Mat x2 / [*Min]) -9/Materials (discovered 3 exits: *Mat x2 / *Min) -9/Mines (discovered 2 exits: *Mat / *Exi) -9/Exiles (discovered 2 exits: *Min x2) -8/Mines -8/Materials -7/Factory (discovered 2 exits: *Sto / Low) -7/Storage History --------- Turn | Location | Event 24 | -11/Scrapyard | Discovered new exit (range 16) 100 | -11/Scrapyard | Entered Materials 326 | -10/Materials | Build established: Mutant 359 | -10/Materials | Discovered new exit (range 16) 552 | -10/Materials | Discovered new exit (range 10) 755 | -10/Materials | Discovered new exit (range 9) 874 | -10/Materials | Repaired Shield Generator 1048 | -10/Materials | Entered another Materials area 1048 | -9/Materials | Evolved 2 slots: Utility x1, Weapon x1 1277 | -9/Materials | Discovered new exit (range 14) 1369 | -9/Materials | Build established: Tank 1585 | -9/Materials | Discovered new exit (range 14) 1729 | -9/Materials | Lost 8 parts (1p2n2u3w) 1894 | -9/Materials | Repaired Imp. Light Cannon 1934 | -9/Materials | Identified exit to Mines 2154 | -9/Materials | Build established: Skirmisher 2167 | -9/Materials | Discovered new exit (range 13) 2217 | -9/Materials | Identified exit to Materials 2448 | -9/Materials | Entered Mines 2454 | -9/Mines | Met a Derelict shopkeep closing up shop 2589 | -9/Mines | Discovered exit to Materials (range 6) 2609 | -9/Mines | Received a Rocket Launcher from a helpful Derelict 2784 | -9/Mines | Found the Drone Emporium 2802 | -9/Mines | Found Prototype Device 2804 | -9/Mines | Identified Bomb Drone Bay 3170 | -9/Mines | Deemed a non-threat by the Exiles lab entrance 3170 | -9/Mines | Discovered new exit (range 5) 3176 | -9/Mines | Identified exit to Exiles 3178 | -9/Mines | Entered Exiles 3178 | -9/Exiles | Found Exiles lab abandoned 3891 | -9/Exiles | Discovered new exit (range 14) 3910 | -9/Exiles | Identified exit to Mines 4187 | -9/Exiles | Discovered exit to Mines (range 14) 4206 | -9/Exiles | Entered Mines 4350 | -8/Mines | Discovered exit to Materials (range 10) 4914 | -8/Mines | Entered Materials 4914 | -8/Materials | Evolved 2 slots: Utility x1, Weapon x1 6023 | -8/Materials | Repaired Imp. Treads 6225 | -8/Materials | Discovered new exit (range 3) 6263 | -8/Materials | Identified exit to Factory 6265 | -8/Materials | Entered Factory 6265 | -7/Factory | Evolved 2 slots: Propulsion x1, Utility x1 6266 | -7/Factory | Identified exit to Lower Caves 6350 | -7/Factory | Garrison activated, responded to threat 7389 | -7/Factory | Fabricated B-48 Gladiator (x3) 7855 | -7/Factory | Repaired Enh. Autogun 7939 | -7/Factory | Cargo convoy interrupted 8224 | -7/Factory | Build established: Hacker-Skirmisher 8439 | -7/Factory | Discovered new exit (range 9) 8472 | -7/Factory | Identified exit to Storage 8474 | -7/Factory | Entered Storage 8479 | -7/Storage | Lost 3 parts (1n1u1w) 8853 | -7/Storage | Lost 3 parts (1n2w) 8923 | -7/Storage | Core integrity fell below 50% 9102 | -7/Storage | Core integrity fell below 20% 9122 | -7/Storage | Destroyed by H-55 Commando with Gauss Rifle Last Messages --------------- 09108_ Switching to secondary target: P-60 Hacker. 09109_ K-01 Serf collects debris. 09109_ R-06 Scavenger collects VTOL Module. 09109_ Gatling Laser destroyed. 09110_ U-05 Engineer lays Concrete. 09112_ R-06 Scavenger collects Aluminum Leg. 09113_ U-05 Engineer lays Concrete. 09113_ K-01 Serf collects debris. 09114_ Penetrated by Slug. 09114_ P-60 Hacker destroyed. 09114_ U-05 Engineer lays Concrete. 09115_ R-06 Scavenger collects Med. Matter Pod. 09116_ Acquired 30 matter. 09116_ M-13 Machinist repairs R-06 Scavenger. 09116_ K-01 Serf collects debris. 09118_ Acquired 57 matter. 09118_ U-05 Engineer lays Concrete. 09119_ K-01 Serf collects debris. 09120_ U-05 Engineer lays Concrete. Map ----- +----------------------------------------------------+ | | | | | | | | | | | | | | | ???### ##### #??????????????????????????????????? | | ???#]]] #?????????##?????????####??######### | | ???#]] """ ########### ##???????#T"#??#"""T"""# | | ???#] ## ##"######### "####""" """# | | ???# " !=**! % | | ???# =% = | | ???# !![ | | ??## ## #+################+##+########### | | ??# ## #######????# #?????? | | ??########## #### ##?????### #?????? | | ???????????### "" " #####?# """ #?????? | | ?????????????#""" u #?# # !!"" #?????? | | ?????????????#"T [ = #?# !=""" #?????? | | ?????????????#"" " ==# =^ ^#?# "" !" #?????? | | ?????????????#"" !%*% #?# ""!=" #?????? | | ?????????????#"" " [%=####?### """" #?????? | | ?????????????#### k!#??????# #?????? | | ????????????????# """ # = #??????##########?????? | | ????????????????# """ ##@ #?????????????????????? | | ????????????????# """ ##h##?????????????????????? | | ????????????????# ## #??????????????????????? | | ????????????????#########r#??????????????????????? | | ????????????????????????m ??????????????????????? | | ???????????????????????? ??????????????????????? | | ???????????????????????? ??????????????????????? | | ????????????????????????#+##?????????????????????? | | ?????????????????????????????????????????????????? | | ?????????????????????????????????????????????????? | | ?????????????????????????????????????????????????? | | ?????????????????????????????????????????????????? | | ?????????????????????????????????????????????????? | | ?????????????????????????????????????????????????? | | ?????????????????????????????????????????????????? | | ?????????????????????????????????????????????????? | | ?????????????????????????????????????????????????? | | ?????????????????????????????????????????????????? | | ?????????????????????????????????????????????????? | | ?????????????????????????????????????????????????? | | ?????????????????????????????????????????????????? | | ?????????????????????????????????????????????????? | | ?????????????????????????????????????????????????? | | ?????????????????????????????????????????????????? | | ?????????????????????????????????????????????????? | +----------------------------------------------------+ Best States ------------- Heat Dissipation 34 Coolant Potential 65 Energy Generation 17 Energy Capacity 300 Matter Stores 300 Matter Capacity 500 Sight Range 16 Robot Scan Range 15 Terrain Scan Density 10 Armor Coverage 600 Evasion (%) 50 Recoil Reduction 7 Matter Filtering 30 Offensive Hacking 10 Defensive Hacking 10 Item Schematics ----------------- None Robot Schematics ------------------ None Fabricated ------------ B-48 Gladiator | x3 | -7/Factory | Preloaded Repaired ---------- Shield Generator | 63% | -10/Materials Imp. Light Cannon | 28% | -9/Materials Imp. Treads | 30% | -8/Materials Enh. Autogun | 8% | -7/Factory Studied --------- None Alien Tech Used ----------------- None Achievements -------------- My Command Is Your Wish Challenges ------------ None Game ------ Seed ShiftGatlingReactor Manual? 0 Play Time 01:35:31 Cumulative 21.0 hours Start 2026.08.01 @ 15:29:02 End 2026.08.01 @ 17:12:56 Sessions 1 Manual Loads 0 Difficulty Rogue Special Mode None Game No. 27 Rogue 27 Adventurer 0 Explorer 0 Win Type - Total 0 Types 0/0/0/0/0/0/0/0/0/0 Lore% 13 Gallery% 15 Achievement% 16 Wizard Run 0 Options --------- Layout 1 ASCII 0 Keyboard 0 Movement Mouse Keybinds 0 Fullscreen 1 Font 48/Smallcaps Map View 50x35 Zoom Use 0% Tactical HUD 1 Map Filters NONE Filters NONE Steam 1 RUN: 1cc84e47-d624-4e75-b5b1-b307f6ebc150